Cogmind - Beta 16.1 @@@ ROGUE MODE // 2026.04.07 @ 08:19:44 Player: FALKE Result: Destroyed by G-50 Soldier with Heavy Laser Performance ------------- Evolutions (5) 2500 Regions Visited (6) 1200 Robots Destroyed (41) 205 Value Destroyed (1444) 1444 Prototype IDs (2) 40 Alien Tech Used (0) 0 Bonus (0) 0 TOTAL SCORE: 5389 Bonus ------- None Cogmind --------- Core Integrity 0/1000 Matter 239/300 Energy 100/100 System Corruption 4% Temperature Cool (9) Movement Core (50) Location -5/Factory Parts ------- > --- POWER (2) -------- (None) > --- PROPULSION (4) --- (None) > --- UTILITY (7) ------ (None) > --- WEAPON (4) ------- (None) > --- INVENTORY (5) ---- Medium Storage Unit Large Matter Pod (140) Peak State ------------ > --- POWER ------------ Light Nuclear Core Light Nuclear Core > --- PROPULSION ------- Aluminum Leg Carbon-fiber Leg Carbon-fiber Leg Improved Carbon-fiber Leg > --- UTILITY ---------- Small Storage Unit Advanced Terrain Scanner Advanced Terrain Scan Processor Medium Reactive Plating Improved Shield Generator > --- WEAPON ----------- Heavy Laser Coil Gun Heavy Rocket Launcher Heavy Mace > --- INVENTORY -------- Improved Ion Engine Light Nuclear Core Improved Heat Sink Large Matter Pod Minigun [Rating: 52] Favorites ----------- Power Light Nuclear Core Engine Light Ion Engine Power Core Light Nuclear Core Propulsion Aluminum Leg Treads Armored Treads Leg Aluminum Leg Wheel Wheel Utility Small Storage Unit Device Improved Heat Sink Storage Small Storage Unit Processor Advanced Terrain Scan Processor Protection Improved Light Armor Plating Weapon Heavy Laser Energy Gun Heavy Laser Ballistic Gun Light Assault Rifle Launcher Heavy Rocket Launcher Special Weapon Welding Torch Impact Weapon Heavy Mace Slashing Weapon Scythe Build | -11 -10 -10 -8 -7 -6 -5 ------- Run | Yrd Mat Sub Mat Fac Fac Fac Slots Evolved 10 | . . . 4 2 2 2 Power 1 | . . . 1 . . . Propulsion 2 | . . . 2 . . . Utility 5 | . . . 1 1 1 2 Weapon 2 | . . . . 1 1 . Parts Attached 69 | 9 7 3 15 24 10 1 Power 14 | 1 . 1 5 5 2 . Engine 8 | 1 . 1 3 2 1 . Core 6 | . . . 2 3 1 . Reactor . | . . . . . . . Propulsion 19 | 2 5 . 2 7 2 1 Treads 4 | . . . 2 2 . . Leg 11 | . 3 . . 5 2 1 Wheel 4 | 2 2 . . . . . Hover . | . . . . . . . Flight . | . . . . . . . Utility 19 | 3 1 1 3 8 3 . Device 7 | 2 . 1 . 3 1 . Storage 2 | 1 . . . 1 . . Processor 2 | . . . . 1 1 . Hackware . | . . . . . . . Protection 8 | . 1 . 3 3 1 . Artifact . | . . . . . . . Weapon 17 | 3 1 1 5 4 3 . Energy Gun 6 | 3 . . 1 2 . . Energy Cannon . | . . . . . . . Ballistic Gun 3 | . . 1 . . 2 . Ballistic Cannon . | . . . . . . . Launcher 2 | . . . 2 . . . Special Weapon 1 | . 1 . . . . . Impact Weapon 2 | . . . 1 1 . . Slashing Weapon 3 | . . . 1 1 1 . Piercing Weapon . | . . . . . . . Special Melee Weapon . | . . . . . . . Unidentified Prototypes 2 | . . . 1 1 . . Corrupted Parts 7 | . 1 1 . 3 2 . System Corruption 27 | . 3 4 . 9 11 . Parts Lost 28 | . . . 1 3 20 4 Power 6 | . . . . 1 5 . Propulsion 7 | . . . . . 5 2 Utility 8 | . . . 1 . 5 2 Weapon 7 | . . . . 2 5 . Highest Loss Streak 11 | . . . 1 1 11 2 To Critical Strikes . | . . . . . . . Average Backups 5 | 3 7 7 6 6 4 2 Power 1 | . 1 1 . 1 2 . Propulsion 1 | 2 2 3 1 1 . . Utility 2 | . 1 2 2 1 1 2 Weapon 1 | . 1 . 1 1 . . Tool/Special . | . . . . . . . Unused Backups 6 | . . . 3 2 . 1 Power . | . . . . . . . Propulsion . | . . . . . . . Utility 4 | . . . 2 1 . 1 Weapon 2 | . . . 1 1 . . Tool/Special . | . . . . . . . Average Slot Usage (%) 77 | . 99 100 84 93 79 9 Engine 5 | . 14 14 7 4 . . Core 6 | . . . 10 10 7 . Treads 8 | . . . 8 22 . . Leg 12 | . 21 28 14 3 21 4 Device 7 | . . 8 7 9 13 4 Storage 7 | . 14 14 9 7 5 . Protection 7 | . 13 5 10 11 4 . Energy Gun 9 | . 25 18 3 14 4 . Ballistic Gun 2 | . . 9 5 . 4 . Launcher 1 | . . . 1 . 4 . Impact Weapon 2 | . . . 2 3 5 . Slashing Weapon 1 | . . . 5 1 . . Peak Build Rating 52 | 7 7 9 28 44 52 8 Average Rating 23 | 5 6 8 20 40 39 6 On Entrance 13 | . 7 7 9 28 37 8 Avg Prop Armor Cover (%) 16 | . . . . 8 17 27 Naked Turns 119 | . . . . . . 119 Heaviest Build 59 | 13 15 16 31 51 59 1 Greatest Support 88 | 26 26 20 40 88 58 20 Greatest Overweight (x) 9 | . . . . . 9 . Average Overweight (x) . | . . . . . . . Largest Inventory Capacity 8 | 8 8 8 8 8 8 5 Average Capacity 7 | 7 8 8 8 8 7 5 Most Carried 8 | 7 8 8 8 8 6 4 Average Carried 5 | 4 7 7 6 6 4 2 Final Capacity 8 | 8 8 8 8 8 5 5 Final Carried 8 | 7 8 7 7 4 3 2 Class Distribution -------------------- 76% | Mutant 9% | Scavenger-Mutant 7% | Tank 5% | Scavenger-Tank Dominant Class ---------------- Mutant | -10/Materials Mutant | -10/Subcaves Mutant | -8/Materials Mutant | -7/Factory Scavenger-Tank | -6/Factory Mutant | -5/Factory Resources | -11 -10 -10 -8 -7 -6 -5 ----------- Run | Yrd Mat Sub Mat Fac Fac Fac Matter Collected 1516 | 290 135 95 557 336 103 . Remotely 82 | 82 . . . . . . Salvage Created 1758 | 105 47 95 564 659 288 . Parts 87 | 4 . 5 31 31 16 . Haulers Intercepted 1 | . . . 1 . . . Recyclers Shooed . | . . . . . . . Parts Field Recycled . | . . . . . . . Retrieved Matter . | . . . . . . . Parts Self-Destructed 16 | . . 16 . . . . Prevented . | . . . . . . . Parts Restored . | . . . . . . . Kills | -11 -10 -10 -8 -7 -6 -5 ------- Run | Yrd Mat Sub Mat Fac Fac Fac Combat Hostiles Destroyed 30 | . 1 2 12 10 5 . Melee 9 | . . . 5 4 . . Guns 11 | . 1 2 1 5 2 . AOE 7 | . . . 6 . 1 . Classes Destroyed 12 | 3 1 1 4 1 2 . Worker 1 | 1 . . . . . . Builder 3 | . . . 1 2 . . Tunneler 1 | 1 . . . . . . Hauler 1 | . . . 1 . . . Recycler 4 | 1 . . . 2 1 . Operator 1 | . . . . . 1 . Cutter 3 | . . . . . 3 . Grunt 17 | . 1 . 8 6 2 . Brawler 1 | . . . 1 . . . Sentry 3 | . . . 3 . . . Programmer 4 | . . . . 4 . . Subdweller 2 | . . 2 . . . . Best Kill Streak 6 | 2 1 1 5 6 3 . Combat Bots Only 5 | . 1 1 5 3 3 . Max Kills in Single Turn 3 | 1 1 1 3 2 2 . Gunslinging . | . . . . . . . Exploded 3 | . . . 3 . 1 . Melee 1 | . . . 1 1 . . Uniques/NPCs Destroyed . | . . . . . . . Combat | -11 -10 -10 -8 -7 -6 -5 -------- Run | Yrd Mat Sub Mat Fac Fac Fac Hostile Shots Fired 441 | . 1 10 45 132 227 26 Missed 128 | . 1 2 11 36 73 5 Hits 313 | . . 8 34 96 154 21 Melee 4 | . . . . . 4 . Projectile 309 | . . 8 34 96 150 21 AOE 8 | . . . . . . 8 Critical Strikes 20 | . . . 3 7 10 . Part Disruptions 1 | . . . . 1 . . Damage Taken 5940 | . . 183 623 1306 2602 1226 Core 1952 | . . 23 105 181 633 1010 Absorbed by Shields 371 | . . . . 124 247 . Ignored by Resistances 276 | . . . . . 276 . Regen/Repaired (Parts) 125 | . . . 63 . 62 . Core Remaining (%) 73 | 100 . 90 80 74 25 . Volleys Fired 75 | 7 5 13 8 30 12 . Largest 3 | 2 2 2 1 3 2 . Hottest 187 | 90 90 90 63 187 99 . Shots Fired 134 | 14 8 26 8 56 22 . Gun 126 | 14 6 26 4 56 20 . Cannon . | . . . . . . . Launcher 6 | . . . 4 . 2 . Special 2 | . 2 . . . . . Kinetic 16 | . . . 2 . 14 . Thermal 69 | 7 5 13 2 36 6 . Explosive 6 | . . . 4 . 2 . Electromagnetic 43 | 7 3 13 . 20 . . Robot Hit Streak 16 | 6 1 15 16 11 3 . Robot Miss Streak 3 | 2 2 2 1 3 3 . Penetration Max 1 | . . . . . 1 . Secondary Targets . | . . . . . . . Shots Hit Robots 113 | 11 2 17 23 48 12 . Core Hits 63 | 4 2 5 22 21 9 . Critical Kills . | . . . . . . . Critical Parts Destroyed 1 | . . . . 1 . . Critical Strikes 9 | 1 . . 2 6 . . Burn 3 | 1 . . . 2 . . Corrupt 2 | . . . . 2 . . Smash 1 | . . . . 1 . . Sever 3 | . . . 2 1 . . Melee Attacks 46 | . . . 21 19 6 . Impact 15 | . . . . 9 6 . Slashing 31 | . . . 21 10 . . Piercing . | . . . . . . . Sneak Attacks 3 | . . . 1 1 1 . Combat Hostiles . | . . . . . . . Follow-up Attacks . | . . . . . . . Damage Inflicted 3439 | 140 53 201 1159 1244 642 . Guns 1368 | 140 53 201 41 677 256 . Cannons . | . . . . . . . Explosions 783 | . . . 565 . 218 . Melee 1288 | . . . 553 567 168 . Ramming . | . . . . . . . Kinetic 204 | . . . 7 . 197 . Thermal 823 | 63 13 112 107 469 59 . Explosive 710 | . . . 492 . 218 . Electromagnetic 414 | 77 40 89 . 208 . . Impact 403 | . . . . 235 168 . Slashing 885 | . . . 553 332 . . Piercing . | . . . . . . . Highest Corruption 15 | . 4 8 1 10 15 4 Average Corruption 5 | . 3 6 1 6 8 3 Corruption Purged . | . . . . . . . Corruption Blocked . | . . . . . . . Effects 49 | . 6 12 4 21 4 2 Message Errors 10 | . . 2 1 5 1 1 Matter Fused 11 | . 2 4 . 5 . . Heat Flow Errors 4 | . 2 2 . . . . Energy Discharges 4 | . 2 . . 1 1 . Parts Rejected 1 | . . . . 1 . . Parts Fused 1 | . . . . 1 . . Data Loss (minor) 14 | . . 3 3 5 2 1 Data Loss (major) 4 | . . 1 . 3 . . Overload Shots . | . . . . . . . Overflow Damage 213 | . . . . 108 105 . Projectiles 17 | . . . . . 17 . Explosions . | . . . . . . . Melee 196 | . . . . 108 88 . Knockbacks 4 | . . . . 2 2 . Impact 3 | . . . . 2 1 . Kinetic . | . . . . . . . Secondary 1 | . . . . . 1 . Self-Inflicted Damage 83 | . . . . . 83 . Shots 3 | . . . . . 3 . Rammed . | . . . . . . . Targets Rammed . | . . . . . . . Kicked . | . . . . . . . Crushed . | . . . . . . . Highest Temperature 553 | 120 219 163 304 553 84 20 Average Temperature 125 | 48 71 58 76 200 32 20 Received Heat Transfer 1240 | . . 57 288 421 369 105 Effects 16 | . . . . 16 . . Shutdowns 6 | . . . . 6 . . Interference 2 | . . . . 2 . . Short Circuit 2 | . . . . 2 . . Damage (minor) 1 | . . . . 1 . . Damage (major) 4 | . . . . 4 . . Damage (core) 1 | . . . . 1 . . Siege Activations . | . . . . . . . Martial Activations . | . . . . . . . Shielding Activations . | . . . . . . . Robots Disrupted . | . . . . . . . Combat Hostiles . | . . . . . . . Robots Corrupted 4 | . . . . 1 3 . Combat Hostiles 2 | . . . . . 2 . Parts Fried 9 | 1 . 1 . 5 2 . Impact Corruptions 9 | . . . . 5 4 . Robots Melted 1 | . . . . 1 . . Combat Hostiles 1 | . . . . 1 . . Parts Melted 5 | 1 . . . 4 . . Heat Transferred 1937 | 259 37 333 124 1073 111 . Parts Sabotaged . | . . . . . . . Parts Stolen . | . . . . . . . Parts Stripped . | . . . . . . . Power Chain Reactions 1 | . . . . . 1 . Alert | -11 -10 -10 -8 -7 -6 -5 ------- Run | Yrd Mat Sub Mat Fac Fac Fac Maximum Alert Level . | . . . . . . . Low Security (%) 100 | 100 100 . 100 100 100 100 Level 1 . | . . . . . . . Level 2 . | . . . . . . . Level 3 . | . . . . . . . Level 4 . | . . . . . . . Level 5 . | . . . . . . . High Security . | . . . . . . . Max Security . | . . . . . . . Peak Influence 180 | 5 30 . 180 88 78 . Initial 70 | . . . . 70 13 . Average 20 | 1 3 . 47 25 14 . Influence Increases 1055 | 15 30 . 402 304 304 . Destroy 0b10 Robot/C 560 | . 20 . 240 200 100 . Destroy 0b10 Robot/NC 55 | 15 . . 10 20 10 . Destroy Leader 142 | . 10 . 62 50 20 . Successful Hack 63 | . . . 14 17 32 . Disable Machine 45 | . . . 15 . 30 . Destroy Structure 70 | . . . 46 2 22 . Lose Combat Pursuer 120 | . . . 15 15 90 . Influence Decreases 1055 | 15 30 . 246 432 332 . Entered New Map 101 | . . . . 86 15 . Time Decay 734 | 15 30 . 236 326 127 . Lost Part 209 | . . . 10 20 179 . Purge Threat 11 | . . . . . 11 . Squads Dispatched 13 | . 1 . 1 4 6 1 Investigation 3 | . . . . 2 1 . Extermination 4 | . . . . 2 1 1 Reinforcement 6 | . 1 . 1 . 4 . Assault . | . . . . . . . Garrison . | . . . . . . . Intercept . | . . . . . . . Searches Triggered . | . . . . . . . Construction Impeded . | . . . . . . . Haulers Reinforced . | . . . . . . . Active Scanning Responses . | . . . . . . . Cargo Convoy Interrupts . | . . . . . . . Stealth | -11 -10 -10 -8 -7 -6 -5 --------- Run | Yrd Mat Sub Mat Fac Fac Fac Distress Signals 4 | . . . 2 2 . . Communications Jammed . | . . . . . . . Distress Signals . | . . . . . . . Times Spotted 81 | . 3 6 20 23 25 4 Peak Tracking Total 9 | . 1 2 5 5 9 2 Tactical Retreats 7 | . . 2 1 1 3 . Traps | -11 -10 -10 -8 -7 -6 -5 ------- Run | Yrd Mat Sub Mat Fac Fac Fac Traps Triggered 2 | . 1 . 1 . . . Indirectly . | . . . . . . . Trap Hack Attempts . | . . . . . . . Triggered . | . . . . . . . Disarmed . | . . . . . . . Reprogrammed . | . . . . . . . Reused . | . . . . . . . Traps Extracted . | . . . . . . . Installed . | . . . . . . . Triggered . | . . . . . . . Machines | -11 -10 -10 -8 -7 -6 -5 ---------- Run | Yrd Mat Sub Mat Fac Fac Fac Machines Disabled 3 | . . . 1 . 2 . Max in Single Turn 1 | . . . 1 . 1 . Machines Repaired . | . . . . . . . Machines Dismantled . | . . . . . . . Machines Sabotaged . | . . . . . . . Overloaded Fab Kills . | . . . . . . . Hacking | -11 -10 -10 -8 -7 -6 -5 --------- Run | Yrd Mat Sub Mat Fac Fac Fac Machines Accessed 12 | . 1 . 3 4 4 . Terminals 8 | . . . 2 4 2 . Fabricators . | . . . . . . . Repair Stations 2 | . . . 1 . 1 . Recycling Units 1 | . 1 . . . . . Scanalyzers 1 | . . . . . 1 . Garrison Access . | . . . . . . . Total Hacks 35 | . 3 . 8 9 15 . Successful 19 | . 2 . 3 2 12 . Failed 15 | . 1 . 5 7 2 . Catastrophic 3 | . 1 . . 2 . . Database Lockouts 1 | . . . . . 1 . Manual . | . . . . . . . Terminals 18 | . . . 4 9 5 . Fabricators . | . . . . . . . Repair Stations 10 | . . . 4 . 6 . Recycling Units 3 | . 3 . . . . . Scanalyzers 4 | . . . . . 4 . Garrison Access . | . . . . . . . Terminal Hacks 7 | . . . 1 2 4 . Record 1 | . . . . . 1 . Open DSF 1 | . . . . 1 . . Unreport Threat 1 | . . . . . 1 . Maintenance Status 1 | . . . . 1 . . Hauler Manifests 1 | . . . . . 1 . Zone Layout 2 | . . . 1 . 1 . Fabricator Hacks . | . . . . . . . Repair Station Hacks 7 | . . . 2 . 5 . Scan Component 4 | . . . 1 . 3 . Repair 3 | . . . 1 . 2 . Recycling Unit Hacks 2 | . 2 . . . . . Report Inventory 1 | . 1 . . . . . Retrieve Components 1 | . 1 . . . . . Scanalyzer 3 | . . . . . 3 . Retrieve Study 3 | . . . . . 3 . Garrison Access Hacks . | . . . . . . . Unauthorized Hacks . | . . . . . . . Terminals . | . . . . . . . Fabricators . | . . . . . . . Repair Stations . | . . . . . . . Recycling Units . | . . . . . . . Scanalyzers . | . . . . . . . Garrison Access . | . . . . . . . Data Cores Recovered . | . . . . . . . Used . | . . . . . . . Hacking Detections 12 | . 1 . 3 4 4 . Full Trace Events 3 | . . . . 2 1 . Feedback Events . | . . . . . . . Feedback Blocked . | . . . . . . . Robot Schematics Acquired . | . . . . . . . Robots Built . | . . . . . . . Authchips . | . . . . . . . Time . | . . . . . . . Total Robot Build Rating . | . . . . . . . Part Schematics Acquired . | . . . . . . . Parts Built . | . . . . . . . Authchips . | . . . . . . . Time . | . . . . . . . Total Part Build Rating . | . . . . . . . Part Studies Acquired 3 | . . . . . 3 . Parts Repaired 3 | . . . 1 . 2 . Time 101 | . . . 19 . 82 . Parts Recycled . | . . . . . . . Recycled Matter . | . . . . . . . Retrieved Matter . | . . . . . . . Retrieved Components 3 | . 3 . . . . . Parts Scanalyzed . | . . . . . . . Part Schematics Acquired . | . . . . . . . Parts Damaged . | . . . . . . . Bothacking | -11 -10 -10 -8 -7 -6 -5 ------------ Run | Yrd Mat Sub Mat Fac Fac Fac Used RIF Installer . | . . . . . . . Robots Hacked . | . . . . . . . Non-combat . | . . . . . . . Combat . | . . . . . . . Robot Hacks Applied . | . . . . . . . Relay Couplers Released . | . . . . . . . Fabnet Peak Effective % . | . . . . . . . Robots Rewired . | . . . . . . . Allies Hacked . | . . . . . . . Hacks Repelled . | . . . . . . . Allies | -11 -10 -10 -8 -7 -6 -5 -------- Run | Yrd Mat Sub Mat Fac Fac Fac Total Allies . | . . . . . . . Largest Group . | . . . . . . . Highest-Rated Group . | . . . . . . . Highest-Rated Ally . | . . . . . . . Total Orders . | . . . . . . . Ally Attacks . | . . . . . . . Total Damage . | . . . . . . . Kills . | . . . . . . . Allies Corrupted . | . . . . . . . Allies Melted . | . . . . . . . Intel | -11 -10 -10 -8 -7 -6 -5 ------- Run | Yrd Mat Sub Mat Fac Fac Fac Active Infowar (turns) 2083 | 87 . 301 594 . 578 523 Optics 895 | . . 301 594 . . . Terrain 1101 | . . . . . 578 523 Seismic 87 | 87 . . . . . . Robot Analysis Total . | . . . . . . . Derelict Logs Recovered . | . . . . . . . Drone Launches . | . . . . . . . Drone Recoveries . | . . . . . . . Exploration | -11 -10 -10 -8 -7 -6 -5 ------------- Run | Yrd Mat Sub Mat Fac Fac Fac Turns Passed 4215 | 218 319 479 765 1178 595 661 Spaces Moved 1848 | 86 172 253 387 541 293 116 Core 120 | 5 . . . . 34 81 Treads 627 | . . . 176 451 . . Legs 979 | . 131 253 211 90 259 35 Wheels 122 | 81 41 . . . . . Hover . | . . . . . . . Flight . | . . . . . . . Fastest Speed 50 | 50 90 120 120 120 50 50 Average Speed 131 | 87 112 120 142 158 127 68 Slowest Speed 500 | 90 120 120 170 170 500 120 Overloaded Moves . | . . . . . . . Propulsion Burnouts . | . . . . . . . Robots Hopped . | . . . . . . . Potential Cave-ins 3 | . . . 3 . . . Cave-ins Triggered . | . . . . . . . Exploration Rate (%) 15 | 5 27 22 33 13 7 2 Regions Visited 6 Branch Regions 1 Pre-discovered Areas . | . . . . . . . Known Exits Taken . | . . . . . . . Unknown Exits Taken 6 | 1 1 1 1 1 1 . Scrap Searched . | . . . . . . . Spaces Dug 11 | . . . . . 11 . Terrain Destroyed 87 | . . . 67 . 20 . Melee . | . . . . . . . Projectile . | . . . . . . . AOE 87 | . . . 67 . 20 . Terrain Rammed . | . . . . . . . Walls Destroyed . | . . . . . . . Machines Disabled . | . . . . . . . Actions | -11 -10 -10 -8 -7 -6 -5 --------- Run | Yrd Mat Sub Mat Fac Fac Fac Total 3423 | 213 287 404 565 776 481 697 Wait 1237 | 98 80 130 92 117 142 578 Move 1842 | 85 171 252 386 540 292 116 Hop . | . . . . . . . Pick Up 75 | 14 6 1 21 19 13 1 Fast Attach 6 | . . . 2 4 . . Attach 54 | 7 6 2 6 17 14 2 Detach 7 | . 3 1 . 3 . . Swap 39 | 2 11 2 10 12 2 . Drop 42 | . 5 3 19 15 . . Fire 75 | 7 5 13 8 30 12 . Melee 46 | . . . 21 19 6 . Ram . | . . . . . . . Kick . | . . . . . . . Crush . | . . . . . . . Escape Stasis . | . . . . . . . Rewire . | . . . . . . . Trap . | . . . . . . . Miscellaneous . | . . . . . . . Route ------- -11/Scrapyard -10/Materials (discovered 2 exits: [*Mat] / [*Sub]) -10/Subcaves -8/Materials -7/Factory -6/Factory -5/Factory History --------- Turn | Location | Event 5 | -11/Scrapyard | Discovered new exit (range 16) 219 | -11/Scrapyard | Entered Materials 329 | -10/Materials | Build established: Mutant 447 | -10/Materials | Discovered new exit (range 7) 497 | -10/Materials | Discovered new exit (range 8) 538 | -10/Materials | Entered Subcaves 539 | -10/Subcaves | Approached by a straggling Scientist 584 | -10/Subcaves | A swath of the cavern ceiling suddenly collapsed 728 | -10/Subcaves | A swath of the cavern ceiling suddenly collapsed 918 | -10/Subcaves | Discovered new exit (range 12) 1017 | -10/Subcaves | Entered Materials 1017 | -8/Materials | Evolved 4 slots: Power x1, Propulsion x2, Utility x1 1442 | -8/Materials | Discovered new exit (range 21) 1731 | -8/Materials | Repaired Carbon-fiber Leg 1782 | -8/Materials | Entered Factory 1782 | -7/Factory | Evolved 2 slots: Utility x1, Weapon x1 1840 | -7/Factory | Identified exit to DSF 2435 | -7/Factory | Build established: Tank 2762 | -7/Factory | Build established: Mutant 2805 | -7/Factory | System corruption reached 10% 2903 | -7/Factory | Discovered new exit (range 4) 2960 | -7/Factory | Entered another Factory area 2960 | -6/Factory | Evolved 2 slots: Utility x1, Weapon x1 3086 | -6/Factory | Central database locked down 3262 | -6/Factory | Repaired Imp. Shield Generator 3300 | -6/Factory | Repaired Carbon-fiber Leg+ 3479 | -6/Factory | System corruption reached 10% 3501 | -6/Factory | Core integrity fell below 50% 3516 | -6/Factory | Lost 11 parts (3p3n3u2w) 3550 | -6/Factory | Discovered new exit (range 5) 3555 | -6/Factory | Entered another Factory area 3555 | -5/Factory | Evolved 2 slots: Utility x2 3573 | -5/Factory | Lost 6 parts (1p1n2u2w) 4124 | -5/Factory | Core integrity fell below 50% 4124 | -5/Factory | Core integrity fell below 20% 4216 | -5/Factory | Destroyed by G-50 Soldier with Heavy Laser Last Messages --------------- 04078_ Adv. Terrain Scanner destroyed. 04079_ ALERT: All DSF locations entering lockdown mode. 04094_ Acquired Flexi-carbon Leg. 04099_ Scanalyzer disabled. 04114_ Fusion Modulator explodes. 04114_ Imp. Heat Sink destroyed. 04114_ Flexi-carbon Leg destroyed. 04119_ EBTJNX 5T|PMRPL 04123_ Nuclear Reactor explodes. 04123_ P-70 Sage destroyed. 04123_ Nuclear Reactor explodes. 04123_ P-70 Sage destroyed. 04128_ Nuclear Reactor explodes. 04129_ The unstable cave ceiling collapses. 04187_ System corrupted: Component data lost. 04189_ The unstable cave ceiling collapses. 04203_ U-05 Engineer lays Concrete. 04204_ U-05 Engineer builds a Wall. 04212_ U-05 Engineer builds a Door. 04213_ The unstable cave ceiling collapses. Map ----- +----------------------------------------------------+ | ?????????????????????????????????????????????????? | | ?????????????????????????????????????????????????? | | ?????????????????????????????????????????????????? | | ?????????????????????????????????????????????????? | | ?????????????????????????????????????????????????? | | ?????????????????????????????????????????????????? | | ??????????????????????????????" ?????????????????? | | ????????????????? ????? ??????"???????#??????????? | | ???????????????#? ????? #????????????????????#??? | | ?????????????????????? ??? ""???""?????????#?????? | | ??????????????????? ?????? ??????"???????????????? | | ???????????#??????????#?#???"?? ?""???????????#??? | | ????????????????????#???##??"""?"????????????????? | | ????????????????###?#?#?#? ??? ? ??#?????????? | | ????????????#??#??????###? ??? ? ?###????????? | | ????????? ??#####?##????####????##??#???#???????? | | ????????##??###???#?#?############??#???#????????? | | ????????????????###??##? # ###?#########???? | | ???????????#??##?????#?### #### #???? | | ???????????##?###???#?#### # # ### #???? | | ??????#?#?????#????#???# #???? | | ???????????#?#??#??##### #???? | | ???????? ?? ??##?????#?# # ##### | | ??????????? ##?##??#?## # | | ??????# ????#?#?#??###### # " | | ??????# ? ????##?#### u@ """ # " | | ??????? ??##?#?#?# ####g""" # # " | | ??????? ?? ??#????### #??#g""" # | | ???????#?#???????#?## ##?# A + "S | | ??????## ????????#### #??# # "" | | ??????## ?? ?###?#??# #?## # # "" | | ?????? ?????? ? ??? #??##### # "" | | ??????????? ?###?##?###?#???#### " """# | | ???????? ? ##??????#????###??###; | | ??????????/?##????#?#??????#??####" | | ???????? ???########????#?##??# | | ???????????? ??#?###??##???#?#??# | | ??????????"" #?#??####?##?#???#?# | | ???????? ???????#?##?#???#?????# | | ???????????? ?##??###?#?#?##?#?# | | ?????????? ??##????#??#???#?#### | | ?????????? ???#??###??##???????## | | ?????????? ?????##????????????### " | | ???????????????#???#???#????##### """ """" | | | | | | | | | | | | | +----------------------------------------------------+ Best States ------------- Heat Dissipation 54 Energy Generation 28 Energy Capacity 370 Matter Stores 450 Matter Capacity 450 Sight Range 21 Terrain Scan Range 20 Terrain Scan Density 210 Armor Coverage 525 Resistance: KI 30 Evasion (%) 55 Melee Accuracy 6 Recoil Reduction 4 Item Schematics ----------------- None Robot Schematics ------------------ None Fabricated ------------ Nothing Repaired ---------- Carbon-fiber Leg | 42% | -8/Materials Carbon-fiber Leg | 43% | -6/Factory Studied --------- Imp. Carbon-fiber Leg | -6/Factory | Hacked Carbon-fiber Leg | -6/Factory | Hacked Coil Gun | -6/Factory | Hacked Alien Tech Used ----------------- None Achievements -------------- Omniscient Cartographer Well Done Challenges ------------ None Game ------ Seed ShockAlphaDetonator Manual? 0 Play Time 01:09:37 Cumulative 9.3 hours Start 2026.04.07 @ 03:18:06 End 2026.04.07 @ 08:19:44 Sessions 3 Manual Loads 0 Difficulty Rogue Special Mode None Game No. 17 Rogue 14 Adventurer 3 Explorer 0 Win Type - Total 0 Types 0/0/0/0/0/0/0/0/0/0 Lore% 8 Gallery% 11 Achievement% 12 Wizard Run 0 Options --------- Layout 0 ASCII 0 Keyboard 0 Movement Mouse Keybinds 0 Fullscreen 1 Font 24/Smallcaps Map View 76x50 Zoom Use 0% Tactical HUD 1 Map Filters NONE Filters NONE Steam 1 RUN: ff218e37-9098-4256-ae2e-acced2304e48